bitfinex-derivatives/quotes_SOLF0:USTF0_20250919
["timestamp","ask_amount","ask_price","bid_price","bid_amount"]
[1758325239953,4.49,237.53,237.42,7.2]
[1758325240549,4.49,237.51,237.42,7.2]
[1758325241955,3.7871,237.5,237.42,7.2]
[1758325243560,4.49,237.54,237.43,7.2]
[1758325243861,4.49,237.57,237.44,1.81914288]
[1758325244054,4.49,237.57,237.45,7.2]
[1758325244855,4.49,237.57,237.47,3.7876]
[1758325245053,4.49,237.57,237.48,7.2]
[1758325246857,8.276,237.57,237.48,7.2]
[1758325263178,4.49,237.57,237.45,7.04]
[1758325263675,9.18785585,237.61,237.55,7.04]
[1758325263879,4.52,237.61,237.55,7.04]
[1758325269286,4.52,237.61,237.55,10.8262]
[1758325272987,4.52,237.61,237.56,7.04]
[1758325273183,4.52,237.61,237.55,3.7862]
[1758325273783,4.52,237.62,237.55,3.7862]
[1758325273989,4.52,237.62,237.55,10.8262]
[1758325277291,4.52,237.62,237.56,7.04]
[1758325288307,4.52,237.6,237.56,7.04]
[1758325288505,4.52,237.6,237.48,7.04]
[1758325289906,4.52,237.6,237.52,7.22]
[1758325291908,4.52,237.6,237.53,7.22]
[1758325298812,4.66785585,237.62,237.54,7.22]
[1758325299515,11.07490587,237.63,237.54,7.22]
[1758325299814,5.242809,237.63,237.54,7.22]
[1758325300214,9.91066485,237.63,237.54,7.22]
[1758325300617,5.242809,237.63,237.54,7.22]
[1758325300812,5.242809,237.63,237.56,3.786]
[1758325301211,5.242809,237.63,237.57,7.22]
[1758325301212,0.732809,237.63,237.57,7.22]
[1758325301417,0.732809,237.63,237.58,3.7857]
[1758325301713,0.02820955,237.62,237.59,7.22]
[1758325305324,0.02820955,237.62,237.56,1.16424102]
[1758325305519,0.02820955,237.62,237.57,7.22]
[1758325305724,0.02820955,237.62,237.56,1.16424102]
[1758325305918,0.02820955,237.62,237.57,7.22]
[1758325306223,0.02820955,237.62,237.56,1.16424102]
[1758325306522,0.02820955,237.62,237.57,7.22]
[1758325306818,0.02820955,237.62,237.56,1.16424102]
[1758325307023,0.02820955,237.62,237.57,7.22]
[1758325307718,0.02820955,237.62,237.56,1.16424102]
[1758325308021,0.02820955,237.62,237.57,7.22]
[1758325312524,0.02820955,237.62,237.59,1.16424102]
[1758325312726,0.02820955,237.62,237.6,7.22]
[1758325313030,0.02820955,237.62,237.59,1.16424102]
[1758325313528,0.02820955,237.62,237.6,7.22]
[1758325314829,0.02820955,237.62,237.6,11.0054]
[1758325315329,0.02820955,237.62,237.61,7.22]
[1758325329448,0.02820955,237.62,237.54,110.13424102]
[1758325329746,0.02820955,237.62,237.55,7.03]
[1758325330936,0.02820955,237.62,237.56,3.7861]
[1758325331345,0.02820955,237.62,237.57,7.03]
[1758325331741,0.02820955,237.62,237.56,3.7861]
[1758325332045,4.53820955,237.62,237.55,7.03]
[1758325333852,8.32340955,237.62,237.55,7.03]
[1758325334643,8.2955,237.61,237.55,7.03]
[1758325334852,1.16424102,237.6,237.5,7.03]
[1758325335045,4.51,237.59,237.5,7.03]
[1758325335850,8.2957,237.59,237.5,7.03]
[1758325336538,8.2957,237.59,237.5,10.8171]
[1758325337955,3.7857,237.59,237.5,7.03]
[1758325338154,4.51,237.58,237.5,7.03]
[1758325339252,3.7857,237.59,237.5,7.03]
[1758325339463,4.51,237.57,237.5,7.03]
[1758325355072,4.51,237.65,237.5,7.03]
[1758325355269,4.51,237.66,237.5,7.03]
[1758325355468,77.58785585,237.67,237.5,7.03]
[1758325355767,4.51,237.63,237.54,6.78]
[1758325356870,4.51,237.63,237.56,6.78]
[1758325368279,0.03133848,237.62,237.56,6.78]
[1758325369176,0.03133848,237.62,237.58,6.78]
[1758325369381,4.54133848,237.62,237.58,6.78]
[1758325369581,4.54133848,237.62,237.51,61.15942318]
[1758325369582,4.54133848,237.62,237.52,6.78]
[1758325369984,4.54133848,237.62,237.56,6.78]
[1758325381892,8.32653848,237.62,237.56,6.78]
[1758325382193,8.32653848,237.62,237.52,3.7867]
[1758325382194,4.51,237.61,237.52,6.85]
[1758325382387,3.786,237.57,237.52,6.85]
[1758325382586,4.51,237.55,237.52,6.85]
[1758325383194,4.51,237.56,237.52,6.85]
[1758325383390,3.786,237.57,237.52,6.85]
[1758325383596,4.51,237.56,237.52,6.85]
[1758325383786,4.51,237.55,237.52,6.85]
[1758325383989,0.03045964,237.56,237.52,6.85]
[1758325384196,4.51,237.55,237.52,6.85]
[1758325384497,0.03045964,237.56,237.52,6.85]
[1758325384893,4.51,237.55,237.52,6.85]
[1758325385294,0.03045964,237.56,237.52,6.85]
[1758325385596,4.51,237.55,237.52,6.85]
[1758325386097,4.51,237.55,237.46,6.85]
[1758325387797,3.7867,237.53,237.46,6.85]
[1758325391695,4.51,237.54,237.46,6.85]
[1758325392397,3.7863,237.55,237.46,6.85]
[1758325394404,0.03045964,237.56,237.47,6.85]
[1758325394701,4.51,237.55,237.47,6.85]
[1758325395302,3.7865,237.54,237.47,6.85]
[1758325396000,4.51,237.53,237.47,6.85]
[1758325396796,4.51,237.5,237.47,6.85]
[1758325397002,58.896,237.57,237.47,6.85]
[1758325397503,4.51,237.56,237.47,6.85]
[1758325397802,58.896,237.57,237.47,6.85]
[1758325398900,4.51,237.55,237.47,6.85]
[1758325399104,58.8989,237.55,237.47,6.85]
[1758325399703,4.51,237.54,237.47,6.85]
[1758325399895,58.8989,237.55,237.47,6.85]
[1758325400798,3.7871,237.5,237.47,6.85]
[1758325401007,8.2971,237.5,237.47,6.85]
[1758325401906,8.2971,237.5,237.42,6.85]
[1758325402904,8.2971,237.5,237.43,6.85]
[1758325407107,3.7874,237.49,237.43,6.85]
[1758325410409,4.51,237.5,237.43,6.85]
[1758325410410,4.5,237.46,237.43,6.85]
[1758325410706,4.5,237.47,237.4,155.89092078]
[1758325411808,3.7879,237.46,237.4,155.89092078]
[1758325412911,3.788,237.45,237.4,155.89092078]
[1758325413204,3.788,237.45,237.4,149.27092078]
[1758325413506,8.2876,237.47,237.4,149.29877949]
[1758325413808,8.2876,237.47,237.41,6.62]
[1758325415206,0.0291741,237.48,237.41,6.62]
[1758325416899,0.0291741,237.48,237.43,6.62]
[1758325417302,0.0291741,237.48,237.42,3.7884]
[1758325418511,0.0291741,237.48,237.43,6.62]
[1758325418809,0.0291741,237.48,237.44,1.16536742]
[1758325419106,0.0291741,237.48,237.45,6.62]
[1758325419308,0.0291741,237.48,237.47,6.62]
[1758325429132,4.5,237.55,237.49,6.62]
[1758325432129,8.2864,237.55,237.49,6.62]
[1758325432435,4.5,237.54,237.49,6.62]
[1758325432637,3.7864,237.55,237.49,6.62]
[1758325432929,3.7864,237.55,237.47,6.62]
[1758325432930,8.2864,237.55,237.47,6.62]
[1758325437737,8.2864,237.55,237.47,10.4075]
[1758325437941,8.2864,237.55,237.48,6.62]
[1758325440643,8.2864,237.55,237.48,10.4073]
[1758325440947,4.5,237.55,237.48,10.4073]
[1758325444751,1.16536742,237.57,237.46,6.56]
[1758325445858,1.16536742,237.57,237.51,6.56]
[1758325446358,8.2859,237.58,237.51,10.3468]
[1758325446655,4.5,237.61,237.52,6.5914914]
[1758325447866,8.2854,237.61,237.55,6.56]
[1758325449260,101.92,237.66,237.57,6.56]
[1758325449261,8.285,237.64,237.57,6.56]
[1758325449456,4.5,237.64,237.57,6.56]
[1758325449862,4.5,237.64,237.58,0.03135319]
[1758325450062,4.5,237.64,237.58,3.81705319]
[1758325450254,4.5,237.64,237.59,6.56]
[1758325450662,4.5,237.64,237.58,3.81705319]
[1758325450964,4.5,237.64,237.59,6.56]
[1758325451163,4.5,237.64,237.58,3.81705319]
[1758325451375,4.5,237.64,237.59,6.56]
[1758325451560,4.5,237.64,237.58,3.81705319]
[1758325451964,4.5,237.64,237.59,6.56]
[1758325452165,4.5,237.67,237.59,6.56]
[1758325461167,4.5,237.67,237.59,10.3455]
[1758325462564,4.5,237.67,237.6,6.56]
[1758325464166,3.7842,237.68,237.6,6.56]
[1758325464371,4.5,237.67,237.6,6.56]
[1758325464573,8.2846,237.67,237.6,6.56]
[1758325464971,3.7846,237.67,237.6,6.56]
[1758325465169,4.5,237.66,237.6,6.56]
[1758325471377,4.5,237.66,237.6,10.3454]
[1758325472069,4.5,237.66,237.61,3.7852]
[1758325472274,4.51,237.69,237.59,6.82]
[1758325473374,0.73259302,237.7,237.59,6.82]
[1758325473972,0.73259302,237.7,237.64,6.82]
[1758325474572,0.73259302,237.7,237.65,0.03215506]
[1758325474760,5.24259302,237.7,237.65,0.03215506]
[1758325475169,5.24259302,237.7,237.66,6.82]
[1758325475571,5.24259302,237.7,237.65,0.03215506]
[1758325476369,5.24259302,237.7,237.65,3.81685506]
[1758325476574,3.7836,237.72,237.66,6.82]
[1758325480981,4.51,237.71,237.65,6.85215506]
[1758325481279,8.2939,237.71,237.65,6.85215506]
[1758325484786,4.51,237.71,237.66,6.82]
[1758325485079,4.51,237.71,237.65,3.81675506]
[1758325485784,4.51,237.71,237.66,6.82]
[1758325485985,4.51,237.71,237.65,3.81675506]
[1758325486188,4.51,237.71,237.66,10.6044]
[1758325486480,4.51,237.71,237.66,3.7844]
[1758325486794,0.73250821,237.73,237.67,6.82]
[1758325486989,4.51,237.79,237.67,6.82]
[1758325487285,0.73234635,237.78,237.67,6.82]
[1758325487489,4.51,237.77,237.67,6.82]
[1758325487777,4.51,237.77,237.71,0.03002628]
[1758325489784,3.7832,237.75,237.71,0.03002628]
[1758325490286,4.51,237.74,237.71,0.03002628]
[1758325490686,3.7832,237.75,237.71,0.03002628]
[1758325491286,4.51,237.74,237.71,0.03002628]
[1758325492175,3.7834,237.73,237.71,0.03002628]
[1758325492374,4.51,237.72,237.71,0.03002628]
[1758325492582,9.17785585,237.8,237.72,6.82]
[1758325492780,4.51,237.8,237.72,6.82]
[1758325493482,0.73223848,237.81,237.72,6.82]
[1758325494786,0.73223848,237.81,237.75,3.783]
[1758325495179,0.73223848,237.81,237.75,10.603]
[1758325498888,0.73223848,237.81,237.76,7.01]
[1758325499088,0.73223848,237.81,237.75,3.783]
[1758325499288,0.73223848,237.81,237.76,7.01]
[1758325499487,0.73223848,237.81,237.75,3.783]
[1758325499795,0.73223848,237.81,237.76,0.02952343]
[1758325499987,5.23223848,237.81,237.76,0.02952343]
[1758325501288,0.73223848,237.81,237.77,7.07]
[1758325501494,3.7812,237.87,237.77,7.07]
[1758325501495,4.5,237.85,237.77,7.07]
[1758325502590,4.5,237.92,237.78,1.81851075]
[1758325502796,4.5,237.93,237.79,7.07]
[1758325503095,4.5,237.89,237.79,7.07]
[1758325503391,25.52,237.88,237.84,0.02667621]
[1758325504294,3.7813,237.87,237.84,0.02667621]
[1758325504789,4.5,237.86,237.84,0.02667621]
[1758325505390,3.7813,237.87,237.84,0.02667621]
[1758325505590,4.5,237.86,237.84,0.02667621]
[1758325505793,3.7813,237.87,237.84,0.02667621]
[1758325505990,4.5,237.86,237.84,0.02667621]
[1758325506293,3.7813,237.87,237.84,0.02667621]
[1758325506485,4.5,237.86,237.84,0.02667621]
[1758325506794,3.7813,237.87,237.84,0.02667621]
[1758325507390,4.5,237.86,237.84,0.02667621]
[1758325507890,3.7813,237.87,237.84,0.02667621]
[1758325508097,4.5,237.86,237.84,0.02667621]
[1758325508300,3.7813,237.87,237.84,0.02667621]
[1758325508493,4.5,237.86,237.84,0.02667621]
[1758325510097,4.51276126,237.9,237.84,0.02667621]
[1758325510296,102.16,237.89,237.84,7.09667621]
[1758325510502,5.23196126,237.9,237.84,7.09667621]
[1758325510797,93.96,237.92,237.85,7.07]
[1758325511198,5.23188429,237.93,237.85,7.07]
[1758325511399,5.23188429,237.93,237.86,0.03119693]
[1758325511600,31.07188429,237.93,237.86,0.03119693]
[1758325511895,63.09188429,237.93,237.86,0.03119693]
[1758325512703,94.45228429,237.93,237.86,0.03119693]
[1758325515109,9.01228429,237.93,237.86,0.03119693]
[1758325515705,3.7806,237.92,237.86,0.03119693]
[1758325516105,4.5,237.91,237.86,0.03119693]
[1758325516305,3.7806,237.92,237.86,0.03119693]
[1758325516813,4.5,237.91,237.86,0.03119693]
[1758325517012,3.7806,237.92,237.86,0.03119693]
[1758325517214,4.5,237.91,237.86,0.03119693]
[1758325517408,3.7806,237.92,237.86,0.03119693]
[1758325517708,3.7807,237.91,237.86,0.03119693]
[1758325517911,102.95188429,237.93,237.86,0.03119693]
[1758325517912,4.5,237.92,237.86,0.03119693]
[1758325518812,4.5,237.88,237.86,0.03119693]
[1758325521510,3.7809,237.9,237.86,0.03119693]
[1758325521707,4.5,237.89,237.86,0.03119693]
[1758325521922,3.7809,237.9,237.86,0.03119693]
[1758325522514,4.5,237.89,237.86,0.03119693]
[1758325522710,3.7809,237.9,237.86,0.03119693]
[1758325523715,4.5,237.89,237.86,0.03119693]
[1758325523914,3.7809,237.9,237.86,0.03119693]
[1758325524209,4.5,237.89,237.86,0.03119693]
[1758325524605,3.7809,237.9,237.86,0.03119693]
[1758325525010,4.5,237.89,237.86,0.03119693]
[1758325525616,3.7809,237.9,237.86,0.03119693]
[1758325525815,4.5,237.89,237.86,0.03119693]
[1758325526011,3.7809,237.9,237.86,0.03119693]
[1758325526612,4.5,237.89,237.86,0.03119693]
[1758325526816,3.7809,237.9,237.86,0.03119693]
[1758325527113,4.5,237.89,237.86,0.03119693]
[1758325527416,4.5,237.9,237.87,7.07]
[1758325528018,102.14,237.91,237.87,7.07]
[1758325528418,4.5,237.9,237.87,7.07]
[1758325529817,5.24188429,237.93,237.89,7.17]
[1758325530218,5.24188429,237.93,237.88,1.16134094]
[1758325531818,4.51,237.92,237.89,7.17]
[1758325533519,0.73188429,237.93,237.89,7.17]
[1758325533718,4.51,237.92,237.89,7.17]
[1758325535418,4.51,237.92,237.87,1.16134094]
[1758325535616,4.51,237.92,237.88,7.17]
[1758325536020,5.24188429,237.93,237.88,7.17]
[1758325536221,5.24188429,237.93,237.87,8.33134094]
[1758325539424,5.24188429,237.93,237.87,12.11244094]
[1758325540621,0.73188429,237.93,237.87,4.94244094]
[1758325540822,106.55,237.96,237.9,7.17]
[1758325541627,106.55,237.96,237.91,0.03185965]
[1758325541828,106.55,237.96,237.92,7.17]
[1758325542130,4.51,237.95,237.92,7.17]
[1758325542633,102.04,237.96,237.92,7.17]
[1758325542824,4.51,237.95,237.92,7.17]
[1758325544526,102.02,237.97,237.91,3.81235965]
[1758325544728,102.02,237.98,237.92,7.17]
[1758325544921,5.24169962,237.99,237.92,7.17]
[1758325545126,107.26169962,237.99,237.92,7.17]
[1758325545934,107.26169962,237.99,237.92,10.9503]
[1758325546335,107.26169962,237.99,237.92,12.11164094]
[1758325546935,5.24169962,237.99,237.93,3.7801]
[1758325547127,4.51,238.01,237.94,7.17]
[1758325547428,4.51,238.02,237.91,0.03185965]
[1758325547633,4.51,238.0,237.91,0.03185965]
[1758325548137,4.51,237.98,237.91,0.03185965]
[1758325551946,4.51,237.98,237.91,3.81225965]
[1758325555236,4.51,237.98,237.92,3.7803]
[1758325555434,4.51,237.98,237.93,7.17]
[1758325555634,4.51,237.98,237.92,10.9503]
[1758325558736,4.51,237.98,237.94,3.7801]
[1758325559039,5.22159964,238.01,237.95,6.61]
[1758325560240,5.22159964,238.01,237.95,10.3898]
[1758325562035,4.49,238.0,237.95,10.3898]
[1758325562437,0.73159964,238.01,237.95,6.61]
[1758325562737,4.49,238.0,237.95,6.61]
[1758325563337,5.22159964,238.01,237.95,6.61]
[1758325564148,4.49,238.01,237.95,6.61]
[1758325564840,4.49,238.01,237.96,3.7798]
[1758325565043,4.49,238.01,237.97,6.56]
[1758325565243,4.49,238.01,237.96,3.7798]
[1758325565745,4.49,238.01,237.98,6.56]
[1758325566844,5.39940166,238.04,237.98,6.56]
[1758325567139,4.49,238.03,237.98,6.56]
[1758325567343,5.39940166,238.04,237.98,6.56]
[1758325567533,4.49,238.03,237.98,6.56]
[1758325567738,5.39940166,238.04,237.98,6.56]
[1758325567939,4.49,238.03,237.98,6.56]
[1758325568135,5.39940166,238.04,237.98,6.56]
[1758325568536,4.49,238.03,237.98,6.56]
[1758325568737,5.39940166,238.04,237.98,6.56]
[1758325568941,4.49,238.03,237.98,6.56]
[1758325569137,5.39940166,238.04,237.98,6.56]
[1758325569338,4.49,238.03,237.98,6.56]
[1758325569647,5.39940166,238.04,237.98,6.56]
[1758325569850,4.49,238.03,237.98,6.56]
[1758325570352,5.22154581,238.04,237.98,6.56]
[1758325571550,5.22154581,238.04,237.98,10.3394]
[1758325577853,4.49,238.03,237.98,6.56]
[1758325578055,0.73154581,238.04,237.98,6.56]
[1758325578550,4.49,238.03,237.98,6.56]
[1758325578756,5.22154581,238.04,237.97,6.5893722]
[1758325578957,3.7787,238.03,237.97,6.5893722]
[1758325580563,5.22154581,238.04,237.97,10.3688722]
[1758325581354,5.22154581,238.04,237.98,3.7794]
[1758325581561,5.22154581,238.04,237.99,6.56]
[1758325581756,5.22154581,238.04,237.98,3.7794]
[1758325582256,5.22154581,238.04,237.99,6.56]
[1758325582458,5.22154581,238.04,237.98,3.7794]
[1758325583258,5.22154581,238.04,237.99,6.56]
[1758325583462,5.22154581,238.04,237.98,3.7794]
[1758325583653,5.22154581,238.04,237.99,6.56]
[1758325583958,0.73154581,238.04,237.98,10.3394]
[1758325587158,0.73154581,238.04,237.98,6.56]
[1758325587364,4.66785585,238.05,237.98,6.56]
[1758325588151,4.66785585,238.06,237.98,6.56]
[1758325588558,4.66785585,238.06,238.02,3.7787]
[1758325588758,4.66785585,238.06,238.03,6.6]
[1758325589865,4.48,238.06,238.03,6.6]
[1758325591660,4.48,238.06,238.02,3.80760396]
[1758325591867,4.48,238.06,238.03,6.6]
[1758325598168,9.14785585,238.06,238.03,6.6]
[1758325598564,9.14785585,238.06,238.02,0.02890396]
[1758325598766,9.14785585,238.06,238.03,6.6]
[1758325599672,9.14785585,238.06,238.02,0.02890396]
[1758325599973,9.14785585,238.06,238.03,6.6]
[1758325600365,9.14785585,238.06,238.02,0.02890396]
[1758325600768,9.14785585,238.06,238.03,6.6]
[1758325606283,4.48,238.05,238.03,6.6]
[1758325606474,4.66785585,238.06,238.03,6.6]
[1758325606674,4.66785585,238.13,238.04,6.6]
[1758325606889,0.73127679,238.15,238.05,3.80500112]
[1758325607077,22.14,238.14,238.07,6.6]
[1758325607283,22.14,238.14,238.08,3.80500112]
[1758325607485,22.14,238.14,238.1,6.6]
[1758325607689,22.14,238.14,238.12,6.6]
[1758325607891,22.14,238.14,238.13,3.6643213]
[1758325608187,26.62,238.14,238.13,3.6643213]
[1758325608588,26.62,238.14,238.09,6.6]
[1758325608787,26.62,238.14,238.08,0.02678777]
[1758325609386,26.62,238.14,238.09,6.6]
[1758325609582,26.62,238.14,238.08,0.02678777]
[1758325610380,4.48,238.14,238.09,6.6]
[1758325610595,0.73127679,238.15,238.09,3.7778]
[1758325610892,101.98,238.14,238.09,3.7778]
[1758325611792,101.98,238.14,238.1,6.6]
[1758325611998,0.73127679,238.15,238.1,6.6]
[1758325612193,101.96,238.14,238.09,3.7778]
[1758325612400,106.44,238.14,238.09,3.7778]
[1758325612591,4.48,238.14,238.09,3.7778]
[1758325612791,106.44,238.14,238.1,6.6]
[1758325613000,106.44,238.14,238.09,3.7778]
[1758325613200,106.44,238.14,238.1,6.6]
[1758325613399,106.44,238.14,238.09,3.7778]
[1758325614395,106.44,238.14,238.1,6.6]
[1758325614596,106.42,238.14,238.09,3.7778]
[1758325615308,4.48,238.14,238.1,6.6]
[1758325615495,106.42,238.14,238.09,3.7778]
[1758325615800,4.48,238.13,238.1,6.6]
[1758325618303,106.4,238.13,238.1,6.6]
[1758325620211,4.48,238.13,238.1,6.6]
[1758325620412,106.36,238.13,238.1,6.6]
[1758325621307,101.88,238.13,238.1,6.6]
[1758325621498,4.49,238.12,238.1,6.6]
[1758325622302,101.88,238.13,238.08,0.02678777]
[1758325622303,4.49,238.1,238.08,0.02678777]
[1758325622506,106.43,238.09,238.08,0.02678777]
[1758325623304,4.49,238.09,238.08,0.02678777]
[1758325623505,106.43,238.09,238.08,0.02678777]
[1758325624301,4.49,238.09,238.08,0.02678777]
[1758325624506,106.43,238.09,238.08,0.02678777]
[1758325625004,4.49,238.09,238.08,0.02678777]
[1758325625304,106.43,238.09,238.08,0.02678777]
[1758325627405,106.41,238.09,238.08,0.02678777]
[1758325627906,4.49,238.09,238.08,0.02678777]
[1758325628108,106.41,238.09,238.08,0.02678777]
[1758325630310,4.49,238.09,238.08,0.02678777]
[1758325630608,106.39,238.09,238.08,0.02678777]
[1758325632603,4.49,238.09,238.08,0.02678777]
[1758325632809,90.23,238.09,238.08,0.02678777]
[1758325633610,4.49,238.09,238.08,0.02678777]
[1758325633810,106.37,238.09,238.08,0.02678777]
[1758325634217,4.49,238.09,238.08,0.02678777]
[1758325634414,106.35,238.09,238.08,0.02678777]
[1758325636208,4.49,238.09,238.08,0.02678777]
[1758325636413,106.35,238.09,238.08,0.02678777]
[1758325637214,4.49,238.09,238.08,0.02678777]
[1758325637418,106.33,238.09,238.08,0.02678777]
[1758325638118,4.49,238.09,238.08,0.02678777]
[1758325638518,106.33,238.09,238.08,0.02678777]
[1758325641713,4.49,238.09,238.08,0.02678777]
[1758325642120,4.49,238.14,238.08,6.69678777]
[1758325642311,106.33,238.13,238.09,6.67]
[1758325642619,4.49,238.13,238.08,0.02678777]
[1758325642818,20.74,238.12,238.08,0.02678777]
[1758325643123,38.34,238.11,238.08,0.02678777]
[1758325643320,38.34,238.11,238.09,6.67]
[1758325643530,38.34,238.11,238.08,0.02678777]
[1758325644122,4.49,238.13,238.09,6.67]
[1758325644421,60.41,238.13,238.08,0.02678777]
[1758325644816,4.49,238.13,238.08,0.02678777]
[1758325645126,77.44,238.12,238.08,0.02678777]
[1758325645311,77.44,238.12,238.09,6.67]
[1758325645517,101.84,238.12,238.09,6.67]
[1758325645822,101.84,238.12,238.08,0.02678777]
[1758325646023,106.33,238.12,238.09,6.67]
[1758325646226,4.49,238.12,238.09,6.67]
[1758325646523,106.33,238.12,238.09,6.67]
[1758325647925,106.33,238.12,238.09,7.82887946]
[1758325648624,101.82,238.11,238.1,7.03]
[1758325648926,106.31,238.12,238.1,1.15887946]
[1758325649515,4.49,238.12,238.1,1.15887946]
[1758325649715,57.31,238.12,238.1,8.18887946]
[1758325651226,4.66785585,238.21,238.11,58.7607]
[1758325651526,4.49,238.22,238.13,1.15887946]
[1758325652027,4.49,238.22,238.12,7.03]
[1758325652028,4.49,238.22,238.14,0.03197458]
[1758325652323,102.76,238.21,238.14,0.03197458]
[1758325652532,107.27,238.2,238.14,0.03197458]
[1758325652826,102.78,238.19,238.14,0.03197458]
[1758325653726,4.49,238.18,238.14,0.03197458]
[1758325654521,102.78,238.19,238.14,0.03197458]
[1758325656329,649.39974939,238.4,238.14,0.03197458]
[1758325656330,4.49,238.25,238.17,1.15887946]
[1758325656528,53.86,238.24,238.18,7.03]
[1758325656826,98.62,238.23,238.18,7.03]
[1758325657031,98.62,238.23,238.2,7.03]
[1758325657330,103.11,238.23,238.2,7.03]
[1758325657629,102.94,238.23,238.19,1.18545655]
[1758325657823,102.94,238.23,238.2,7.03]
[1758325658220,102.94,238.23,238.19,4.96155655]
[1758325658428,102.94,238.23,238.2,7.03]
[1758325659033,107.43,238.23,238.2,7.03]
[1758325659334,4.49,238.27,238.2,7.03]
[1758325659625,102.9,238.26,238.2,7.03]
[1758325661332,4.49,238.27,238.2,7.03]
[1758325661627,94.23,238.26,238.19,11.99155655]
[1758325661830,4.49,238.26,238.19,11.99155655]
[1758325662027,53.54,238.25,238.19,11.99155655]
[1758325662231,4.49,238.26,238.19,4.96155655]
[1758325662431,49.16,238.25,238.19,11.99155655]
[1758325662735,93.38,238.24,238.19,4.96155655]
[1758325663032,97.87,238.24,238.2,7.03]
[1758325663330,97.87,238.24,238.19,4.96155655]
[1758325663727,4.49,238.24,238.2,7.03]
[1758325663932,4.49,238.24,238.19,4.96155655]
[1758325664131,4.49,238.24,238.2,7.03]
[1758325664732,4.49,238.24,238.19,4.96155655]
[1758325664933,4.49,238.24,238.2,7.03]
[1758325665126,4.49,238.27,238.2,7.03]
[1758325665321,102.8,238.26,238.2,7.03]
[1758325665633,102.8,238.25,238.2,7.03]
[1758325665828,102.78,238.25,238.2,7.03]
[1758325666030,102.78,238.25,238.19,11.99155655]
[1758325666326,4.49,238.27,238.21,3.7758]
[1758325666531,4.49,238.27,238.21,10.8058]
[1758325666926,4.49,238.25,238.22,7.03]
[1758325667127,102.76,238.25,238.19,1.18545655]
[1758325668344,102.74,238.26,238.2,7.03]
[1758325669035,102.74,238.25,238.2,7.03]
[1758325669335,102.74,238.25,238.19,8.21545655]
[1758325669524,4.49,238.27,238.19,8.21545655]
[1758325669931,35.72,238.26,238.19,8.21545655]
[1758325670740,4.49,238.27,238.19,8.21545655]
[1758325672032,74.32,238.26,238.19,8.21545655]
[1758325672228,102.68,238.25,238.19,8.21545655]
[1758325672435,4.49,238.27,238.21,1.15887946]
[1758325672736,102.68,238.26,238.21,1.15887946]
[1758325673235,4.49,238.25,238.21,1.15887946]
[1758325673436,102.68,238.26,238.21,1.15887946]
[1758325674437,0.73086212,238.28,238.21,1.15887946]
[1758325674639,4.49,238.24,238.21,1.15887946]
[1758325675537,4.49,238.3,238.22,7.03]
[1758325675733,4.49,238.3,238.19,0.02657709]
[1758325675734,4.49,238.3,238.26,8.18887946]